[Event "*** Titled Tuesday Blitz"]
[Site "Chess.com"]
[Date "2018.01.02"]
[Round "3"]
[White "GMAkobianSTL"]
[Black "JustaTrickstar"]
[Result "1-0"]
[WhiteElo "2671"]
[BlackElo "2471"]
[TimeControl "180+2"]
[EndTime "13:36:28 PST"]
[Termination "GMAkobianSTL won on time"]

1. d4 {[%clk 0:03:01.9]} 1... f5 {[%clk 0:03:00]} 2. Nc3 {[%clk 0:03:01.7]} 2...
Nf6 {[%clk 0:02:59.9]} 3. Bg5 {[%clk 0:03:01.1]} 3... d5 {[%clk 0:03:00.8]} 4.
Bxf6 {[%clk 0:03:01.4]} 4... exf6 {[%clk 0:03:02.7]} 5. e3 {[%clk 0:03:01.2]}
5... Be6 {[%clk 0:03:03.6]} 6. Bd3 {[%clk 0:02:59.8]} 6... Qd7 {[%clk
0:03:04.2]} 7. Nge2 {[%clk 0:02:59.9]} 7... Nc6 {[%clk 0:02:49.2]} 8. a3 {[%clk
0:03:00.1]} 8... Ne7 {[%clk 0:02:35.9]} 9. b3 {[%clk 0:02:57.1]} 9... Nc8 {[%clk
0:01:52.3]} 10. Na4 {[%clk 0:02:55.8]} 10... b6 {[%clk 0:01:42.3]} 11. c4 {[%clk
0:02:55.7]} 11... Nd6 {[%clk 0:01:24.2]} 12. Qc2 {[%clk 0:02:50.2]} 12... dxc4
{[%clk 0:01:14.5]} 13. bxc4 {[%clk 0:02:49.9]} 13... Bxc4 {[%clk 0:00:56.8]} 14.
Bxc4 {[%clk 0:02:48.5]} 14... Nxc4 {[%clk 0:00:58.7]} 15. Qxc4 {[%clk
0:02:39.2]} 15... b5 {[%clk 0:01:00]} 16. Qa2 {[%clk 0:02:33.1]} 16... bxa4
{[%clk 0:00:59.6]} 17. O-O {[%clk 0:02:33.1]} 17... Bd6 {[%clk 0:00:56.9]} 18.
Rfc1 {[%clk 0:02:32.1]} 18... Qf7 {[%clk 0:00:57.4]} 19. Qc2 {[%clk 0:02:32.4]}
19... g6 {[%clk 0:00:50.8]} 20. Qxa4+ {[%clk 0:02:31.8]} 20... Kf8 {[%clk
0:00:51.4]} 21. Nc3 {[%clk 0:02:31.3]} 21... Kg7 {[%clk 0:00:44.8]} 22. Nb5
{[%clk 0:02:30.1]} 22... Qd7 {[%clk 0:00:32.9]} 23. Qa6 {[%clk 0:02:25.7]} 23...
Rhb8 {[%clk 0:00:27.9]} 24. Nxd6 {[%clk 0:02:21.5]} 24... cxd6 {[%clk
0:00:20.7]} 25. Rc6 {[%clk 0:02:21.3]} 25... d5 {[%clk 0:00:11.3]} 26. Rac1
{[%clk 0:02:17.6]} 26... Kh6 {[%clk 0:00:07.8]} 27. g3 {[%clk 0:02:17.1]} 27...
Rb2 {[%clk 0:00:06.5]} 28. Rxf6 {[%clk 0:02:17]} 28... Re8 {[%clk 0:00:05.7]}
29. Rcc6 {[%clk 0:02:06.1]} 29... Qb7 {[%clk 0:00:03.9]} 30. Rxg6+ {[%clk
0:01:54.1]} 30... hxg6 {[%clk 0:00:05.8]} 31. Rxg6+ {[%clk 0:01:54.1]} 31... Kh5
{[%clk 0:00:07.4]} 32. Qf6 {[%clk 0:01:35.7]} 32... Rb1+ {[%clk 0:00:06.7]} 33.
Kg2 {[%clk 0:01:36.1]} 33... Rg1+ {[%clk 0:00:06.6]} 34. Kh3 {[%clk 0:01:33.4]}
1-0

[Event "*** Titled Tuesday Blitz"]
[Site "Chess.com"]
[Date "2018.01.02"]
[Round "3"]
[White "Rhinos1"]
[Black "nicegg"]
[Result "0-1"]
[WhiteElo "2003"]
[BlackElo "1998"]
[TimeControl "180+2"]
[EndTime "13:36:35 PST"]
[Termination "nicegg won on time"]

1. e4 {[%clk 0:02:59.1]} 1... e5 {[%clk 0:02:59.5]} 2. Nf3 {[%clk 0:02:57.1]}
2... Nc6 {[%clk 0:03:00.5]} 3. Bb5 {[%clk 0:02:51.3]} 3... Nd4 {[%clk
0:03:01.3]} 4. Be2 {[%clk 0:02:34.2]} 4... Bc5 {[%clk 0:02:50]} 5. O-O {[%clk
0:02:32.7]} 5... Nxf3+ {[%clk 0:02:48.4]} 6. Bxf3 {[%clk 0:02:33.2]} 6... d6
{[%clk 0:02:47.6]} 7. c3 {[%clk 0:02:32.3]} 7... Bb6 {[%clk 0:02:46.3]} 8. d4
{[%clk 0:02:28.4]} 8... Nf6 {[%clk 0:02:44]} 9. Bg5 {[%clk 0:02:21]} 9... h6
{[%clk 0:02:43.8]} 10. Bh4 {[%clk 0:02:20.5]} 10... g5 {[%clk 0:02:43.3]} 11.
Bg3 {[%clk 0:02:18.6]} 11... h5 {[%clk 0:02:33.8]} 12. dxe5 {[%clk 0:02:18.7]}
12... h4 {[%clk 0:02:21.8]} 13. exf6 {[%clk 0:02:10.8]} 13... hxg3 {[%clk
0:02:11.1]} 14. hxg3 {[%clk 0:02:12.7]} 14... Qxf6 {[%clk 0:02:12]} 15. Re1
{[%clk 0:01:53.9]} 15... g4 {[%clk 0:02:01.2]} 16. e5 {[%clk 0:01:29.1]} 16...
dxe5 {[%clk 0:01:47.2]} 17. Nd2 {[%clk 0:01:24.2]} 17... gxf3 {[%clk 0:01:39.2]}
18. Nxf3 {[%clk 0:01:21.4]} 18... Be6 {[%clk 0:01:36.3]} 19. Rxe5 {[%clk
0:01:05.4]} 19... Rd8 {[%clk 0:01:30]} 20. Qa4+ {[%clk 0:00:51.4]} 20... c6
{[%clk 0:01:25.1]} 21. Rae1 {[%clk 0:00:46.3]} 21... Qh6 {[%clk 0:01:18.5]} 22.
Nh4 {[%clk 0:00:34]} 22... Rd2 {[%clk 0:01:07.5]} 23. R1e2 {[%clk 0:00:17.6]}
23... Rxe2 {[%clk 0:01:04]} 24. Rxe2 {[%clk 0:00:19.5]} 24... Qf6 {[%clk
0:00:57.9]} 0-1

[Event "*** Titled Tuesday Blitz"]
[Site "Chess.com"]
[Date "2018.01.02"]
[Round "3"]
[White "gmmoranda"]
[Black "comedy_of_errors"]
[Result "1-0"]
[WhiteElo "2732"]
[BlackElo "2576"]
[TimeControl "180+2"]
[EndTime "13:36:46 PST"]
[Termination "gmmoranda won by resignation"]

1. d4 {[%clk 0:03:01.9]} 1... Nf6 {[%clk 0:03:00.6]} 2. c4 {[%clk 0:03:02.1]}
2... g6 {[%clk 0:03:01.9]} 3. Nc3 {[%clk 0:03:03.2]} 3... Bg7 {[%clk 0:03:03.2]}
4. e4 {[%clk 0:03:04.4]} 4... d6 {[%clk 0:03:04.6]} 5. f4 {[%clk 0:03:05.7]}
5... O-O {[%clk 0:03:05.2]} 6. Nf3 {[%clk 0:03:06.9]} 6... Na6 {[%clk
0:03:06.6]} 7. Bd3 {[%clk 0:03:07.7]} 7... e5 {[%clk 0:03:07.7]} 8. fxe5 {[%clk
0:03:09.1]} 8... dxe5 {[%clk 0:03:08.9]} 9. d5 {[%clk 0:03:10.6]} 9... Nc5
{[%clk 0:03:02.7]} 10. Bc2 {[%clk 0:03:11.8]} 10... a5 {[%clk 0:03:04.3]} 11.
O-O {[%clk 0:03:13]} 11... Qe7 {[%clk 0:02:45.4]} 12. Kh1 {[%clk 0:03:13.6]}
12... Bd7 {[%clk 0:02:45.4]} 13. Bg5 {[%clk 0:03:11.1]} 13... h6 {[%clk
0:02:45.7]} 14. Be3 {[%clk 0:03:09.8]} 14... b6 {[%clk 0:02:46]} 15. b3 {[%clk
0:03:00.7]} 15... Ng4 {[%clk 0:02:39.8]} 16. Bg1 {[%clk 0:03:01.3]} 16... f5
{[%clk 0:02:41.3]} 17. Qe2 {[%clk 0:02:55.1]} 17... Rae8 {[%clk 0:02:27.4]} 18.
a3 {[%clk 0:02:55.1]} 18... fxe4 {[%clk 0:01:57.8]} 19. Nxe4 {[%clk 0:02:54.6]}
19... Nxe4 {[%clk 0:01:57.9]} 20. Bxe4 {[%clk 0:02:56.5]} 20... Bf5 {[%clk
0:01:59.2]} 21. Nd2 {[%clk 0:02:57.4]} 21... Qh4 {[%clk 0:01:42.7]} 22. Rae1
{[%clk 0:02:23.2]} 22... h5 {[%clk 0:01:29.6]} 23. b4 {[%clk 0:02:17.6]} 23...
axb4 {[%clk 0:01:30.1]} 24. axb4 {[%clk 0:02:19.5]} 24... Kh8 {[%clk 0:01:30.1]}
25. c5 {[%clk 0:02:17.9]} 25... bxc5 {[%clk 0:01:31.7]} 26. bxc5 {[%clk
0:02:19.8]} 26... Bh6 {[%clk 0:01:26.8]} 27. Nf3 {[%clk 0:02:19.6]} 27... Qd8
{[%clk 0:01:18.9]} 28. h3 {[%clk 0:02:14.6]} 28... Bf4 {[%clk 0:00:43.9]} 29.
Rd1 {[%clk 0:02:12.1]} 29... Nf6 {[%clk 0:00:38.5]} 30. Bxf5 {[%clk 0:02:01.4]}
30... gxf5 {[%clk 0:00:40.4]} 31. Nh4 {[%clk 0:02:01.5]} 31... Ne4 {[%clk
0:00:41.7]} 32. Nxf5 {[%clk 0:02:02.1]} 32... Rxf5 {[%clk 0:00:38.8]} 33. Qxe4
{[%clk 0:02:02.9]} 33... Qg5 {[%clk 0:00:33.4]} 34. d6 {[%clk 0:01:58.1]} 34...
cxd6 {[%clk 0:00:30.8]} 35. cxd6 {[%clk 0:02:00]} 35... Rd8 {[%clk 0:00:27.2]}
36. Rf3 {[%clk 0:01:43.4]} 36... Rf6 {[%clk 0:00:24]} 37. d7 {[%clk 0:01:42.7]}
37... Rf7 {[%clk 0:00:17.2]} 38. Rfd3 {[%clk 0:01:42.7]} 38... Qf5 {[%clk
0:00:16.7]} 39. Qxf5 {[%clk 0:01:40.6]} 39... Rxf5 {[%clk 0:00:18.6]} 40. Bb6
{[%clk 0:01:41.7]} 40... Bg5 {[%clk 0:00:20.1]} 41. Bxd8 {[%clk 0:01:39.8]}
41... Bxd8 {[%clk 0:00:22]} 42. Rf3 {[%clk 0:01:40.5]} 1-0

[Event "*** Titled Tuesday Blitz"]
[Site "Chess.com"]
[Date "2018.01.02"]
[Round "3"]
[White "yosephtaher"]
[Black "Abrito99"]
[Result "0-1"]
[WhiteElo "2493"]
[BlackElo "2369"]
[TimeControl "180+2"]
[EndTime "13:36:48 PST"]
[Termination "Abrito99 won by checkmate"]

1. c4 {[%clk 0:03:01.9]} 1... g6 {[%clk 0:02:58.6]} 2. Nc3 {[%clk 0:03:02.6]}
2... Bg7 {[%clk 0:02:59.1]} 3. Nf3 {[%clk 0:03:02]} 3... d6 {[%clk 0:02:59.6]}
4. d4 {[%clk 0:03:02.7]} 4... Nf6 {[%clk 0:03:00]} 5. e4 {[%clk 0:03:01.6]} 5...
O-O {[%clk 0:03:00.2]} 6. Be2 {[%clk 0:03:02.9]} 6... e5 {[%clk 0:03:01.6]} 7.
O-O {[%clk 0:03:02.7]} 7... Nc6 {[%clk 0:03:02.5]} 8. d5 {[%clk 0:03:02.1]} 8...
Ne7 {[%clk 0:03:04]} 9. b4 {[%clk 0:03:02.8]} 9... Ne8 {[%clk 0:03:04.1]} 10.
Nd2 {[%clk 0:03:00.6]} 10... f5 {[%clk 0:03:04.9]} 11. a4 {[%clk 0:03:00.7]}
11... Nf6 {[%clk 0:03:02]} 12. c5 {[%clk 0:02:59.3]} 12... f4 {[%clk 0:02:59.5]}
13. Nc4 {[%clk 0:02:58]} 13... g5 {[%clk 0:02:56.4]} 14. f3 {[%clk 0:02:57.9]}
14... Ne8 {[%clk 0:02:56.2]} 15. Ba3 {[%clk 0:02:58.5]} 15... h5 {[%clk
0:02:43.5]} 16. b5 {[%clk 0:02:58.7]} 16... b6 {[%clk 0:02:44.2]} 17. cxd6
{[%clk 0:02:57.6]} 17... cxd6 {[%clk 0:02:46.1]} 18. Na2 {[%clk 0:02:59]} 18...
Rf6 {[%clk 0:02:44.4]} 19. Nb4 {[%clk 0:02:59.8]} 19... Rg6 {[%clk 0:02:44.7]}
20. Nc6 {[%clk 0:03:00.5]} 20... Nxc6 {[%clk 0:02:05.9]} 21. dxc6 {[%clk
0:02:52.6]} 21... Kh7 {[%clk 0:02:07]} 22. a5 {[%clk 0:02:51.6]} 22... g4 {[%clk
0:02:05.8]} 23. axb6 {[%clk 0:02:52.1]} 23... g3 {[%clk 0:01:56.4]} 24. Qd2
{[%clk 0:02:00.4]} 24... Qh4 {[%clk 0:01:32.4]} 25. h3 {[%clk 0:02:00.4]} 25...
Bxh3 {[%clk 0:01:33.1]} 26. gxh3 {[%clk 0:02:00.2]} 26... Qxh3 {[%clk
0:01:11.1]} 27. Bd3 {[%clk 0:02:00.3]} 27... g2 {[%clk 0:01:11.3]} 28. Rfe1
{[%clk 0:02:00.3]} 28... Bf6 {[%clk 0:00:28.1]} 29. Nxe5 {[%clk 0:01:01.3]}
29... Bh4 {[%clk 0:00:21]} 30. Nxg6 {[%clk 0:00:52.5]} 30... Qh1# {[%clk
0:00:21.2]} 0-1

[Event "*** Titled Tuesday Blitz"]
[Site "Chess.com"]
[Date "2018.01.02"]
[Round "3"]
[White "FrankieJay"]
[Black "Maili15"]
[Result "0-1"]
[WhiteElo "2293"]
[BlackElo "2304"]
[TimeControl "180+2"]
[EndTime "13:36:55 PST"]
[Termination "Maili15 won on time"]

1. c4 {[%clk 0:03:01.9]} 1... e6 {[%clk 0:03:00.3]} 2. Nc3 {[%clk 0:03:00.3]}
2... d5 {[%clk 0:03:00.1]} 3. e3 {[%clk 0:03:01.6]} 3... Nf6 {[%clk 0:03:01.4]}
4. Nf3 {[%clk 0:02:59.9]} 4... Be7 {[%clk 0:03:02.7]} 5. b3 {[%clk 0:02:56]}
5... O-O {[%clk 0:03:01.4]} 6. Bb2 {[%clk 0:02:56.6]} 6... c5 {[%clk 0:03:03]}
7. d4 {[%clk 0:02:51.7]} 7... b6 {[%clk 0:02:56.8]} 8. cxd5 {[%clk 0:02:47.6]}
8... exd5 {[%clk 0:02:57.2]} 9. Bd3 {[%clk 0:02:42.9]} 9... Bb7 {[%clk
0:02:57.2]} 10. O-O {[%clk 0:02:40.8]} 10... Nbd7 {[%clk 0:02:57.3]} 11. Rc1
{[%clk 0:02:30.8]} 11... Ne4 {[%clk 0:02:53.1]} 12. Qc2 {[%clk 0:02:18.7]} 12...
f5 {[%clk 0:02:46.1]} 13. dxc5 {[%clk 0:02:07.3]} 13... bxc5 {[%clk 0:02:32.8]}
14. Rfd1 {[%clk 0:02:01]} 14... Ndf6 {[%clk 0:02:02.9]} 15. Nd2 {[%clk
0:01:20.1]} 15... Qe8 {[%clk 0:01:53]} 16. f3 {[%clk 0:01:02.3]} 16... Nxd2
{[%clk 0:01:48.7]} 17. Qxd2 {[%clk 0:01:02.1]} 17... Bd6 {[%clk 0:01:39.1]} 18.
Bxf5 {[%clk 0:00:54.7]} 18... Qe5 {[%clk 0:01:37.8]} 19. e4 {[%clk 0:00:19.3]}
19... Qxh2+ {[%clk 0:01:36]} 20. Kf1 {[%clk 0:00:20.4]} 20... Bf4 {[%clk
0:01:34.7]} 21. Qf2 {[%clk 0:00:18.1]} 21... Ba6+ {[%clk 0:01:27.2]} 22. Ne2
{[%clk 0:00:17.8]} 22... Qh1+ {[%clk 0:01:19.5]} 23. Qg1 {[%clk 0:00:16.7]}
23... Qxg1+ {[%clk 0:01:20.1]} 24. Kxg1 {[%clk 0:00:18.6]} 24... Bxe2 {[%clk
0:01:20.4]} 25. Re1 {[%clk 0:00:13.9]} 25... Bxc1 {[%clk 0:01:17.2]} 26. Bxc1
{[%clk 0:00:15.8]} 26... Bb5 {[%clk 0:01:11.7]} 27. exd5 {[%clk 0:00:16.6]}
27... Rfd8 {[%clk 0:01:10.5]} 28. Bg5 {[%clk 0:00:05.2]} 28... Kf8 {[%clk
0:01:00.8]} 29. Re6 {[%clk 0:00:02.7]} 29... Rxd5 {[%clk 0:00:52.7]} 0-1

[Event "*** Titled Tuesday Blitz"]
[Site "Chess.com"]
[Date "2018.01.02"]
[Round "3"]
[White "EndgameGrinder"]
[Black "ChainsOfFantasia"]
[Result "0-1"]
[WhiteElo "2437"]
[BlackElo "2453"]
[TimeControl "180+2"]
[EndTime "13:36:57 PST"]
[Termination "ChainsOfFantasia won by resignation"]

1. d4 {[%clk 0:03:01.9]} 1... Nf6 {[%clk 0:03:00.2]} 2. Nf3 {[%clk 0:03:03.1]}
2... e6 {[%clk 0:03:01.2]} 3. Bf4 {[%clk 0:03:02.8]} 3... Bd6 {[%clk 0:03:01.1]}
4. Bg5 {[%clk 0:02:43.7]} 4... h6 {[%clk 0:03:00.9]} 5. Bh4 {[%clk 0:02:44.2]}
5... O-O {[%clk 0:03:01.2]} 6. Nc3 {[%clk 0:02:44.5]} 6... Be7 {[%clk 0:03:02]}
7. Qd2 {[%clk 0:02:40.7]} 7... d5 {[%clk 0:03:02.4]} 8. Bxf6 {[%clk 0:02:37.5]}
8... Bxf6 {[%clk 0:03:03]} 9. e4 {[%clk 0:02:39.4]} 9... b6 {[%clk 0:02:58.5]}
10. e5 {[%clk 0:02:39.5]} 10... Be7 {[%clk 0:02:58.9]} 11. Bd3 {[%clk
0:02:38.6]} 11... c5 {[%clk 0:02:59.8]} 12. h4 {[%clk 0:02:23.9]} 12... Nc6
{[%clk 0:02:55.2]} 13. g4 {[%clk 0:02:17.8]} 13... cxd4 {[%clk 0:02:55.4]} 14.
Ne2 {[%clk 0:02:16.2]} 14... Bb4 {[%clk 0:02:51.4]} 15. c3 {[%clk 0:02:17.7]}
15... dxc3 {[%clk 0:02:52.7]} 16. bxc3 {[%clk 0:02:19.6]} 16... Bc5 {[%clk
0:02:48.2]} 17. g5 {[%clk 0:02:20.5]} 17... h5 {[%clk 0:02:47.8]} 18. Nf4 {[%clk
0:02:04.6]} 18... Qc7 {[%clk 0:02:43.1]} 19. Qe2 {[%clk 0:01:56]} 19... d4
{[%clk 0:02:40.2]} 20. Qe4 {[%clk 0:01:34.2]} 20... g6 {[%clk 0:02:34.2]} 21.
Nxh5 {[%clk 0:01:35.6]} 21... Bb7 {[%clk 0:02:25.9]} 22. Nf6+ {[%clk 0:01:35.9]}
22... Kg7 {[%clk 0:02:26.5]} 23. h5 {[%clk 0:01:14.2]} 23... Nb4 {[%clk
0:02:26.9]} 24. hxg6 {[%clk 0:01:11.7]} 24... Rh8 {[%clk 0:01:51.6]} 25. Nh5+
{[%clk 0:00:19.6]} 25... Rxh5 {[%clk 0:01:46.6]} 26. Rxh5 {[%clk 0:00:21.5]}
26... Bxe4 {[%clk 0:01:47.6]} 27. Rh7+ {[%clk 0:00:22.6]} 27... Kg8 {[%clk
0:01:36.8]} 28. Bxe4 {[%clk 0:00:24.5]} 28... Rd8 {[%clk 0:01:24.1]} 29. g7
{[%clk 0:00:24.6]} 29... Nc2+ {[%clk 0:01:10.5]} 30. Kf1 {[%clk 0:00:20.9]}
30... Nxa1 {[%clk 0:01:06.9]} 31. g6 {[%clk 0:00:09.8]} 31... fxg6 {[%clk
0:01:04.7]} 32. Ng5 {[%clk 0:00:11.1]} 32... Qxe5 {[%clk 0:01:05]} 33. Bxg6
{[%clk 0:00:07.5]} 33... Qxg5 {[%clk 0:01:04.9]} 0-1

[Event "*** Titled Tuesday Blitz"]
[Site "Chess.com"]
[Date "2018.01.02"]
[Round "3"]
[White "timator"]
[Black "PowerThinking2650"]
[Result "1-0"]
[WhiteElo "2318"]
[BlackElo "2199"]
[TimeControl "180+2"]
[EndTime "13:37:04 PST"]
[Termination "timator won by resignation"]

1. Nf3 {[%clk 0:02:57]} 1... Nf6 {[%clk 0:03:00.4]} 2. g3 {[%clk 0:02:55.5]}
2... g6 {[%clk 0:03:01.1]} 3. Bg2 {[%clk 0:02:55.9]} 3... Bg7 {[%clk 0:03:01.9]}
4. O-O {[%clk 0:02:56.4]} 4... O-O {[%clk 0:03:02.5]} 5. d4 {[%clk 0:02:57.3]}
5... d6 {[%clk 0:03:02.3]} 6. c4 {[%clk 0:02:58.3]} 6... Nbd7 {[%clk 0:03:02.3]}
7. Nc3 {[%clk 0:02:59.2]} 7... e5 {[%clk 0:03:03.6]} 8. e4 {[%clk 0:02:59.2]}
8... exd4 {[%clk 0:03:04.6]} 9. Nxd4 {[%clk 0:03:00.3]} 9... Re8 {[%clk
0:03:06.2]} 10. f3 {[%clk 0:02:59.5]} 10... Ne5 {[%clk 0:02:57.3]} 11. b3 {[%clk
0:02:59.9]} 11... h5 {[%clk 0:02:54.7]} 12. Be3 {[%clk 0:02:50.7]} 12... h4
{[%clk 0:02:53.2]} 13. g4 {[%clk 0:02:51.8]} 13... Nh7 {[%clk 0:02:50.2]} 14.
Bf2 {[%clk 0:02:48.9]} 14... g5 {[%clk 0:02:49.2]} 15. h3 {[%clk 0:02:40]} 15...
Ng6 {[%clk 0:02:48.2]} 16. Qd2 {[%clk 0:02:34.7]} 16... Be5 {[%clk 0:02:47.2]}
17. Rad1 {[%clk 0:02:29.4]} 17... Nhf8 {[%clk 0:02:34.5]} 18. Nce2 {[%clk
0:02:16.5]} 18... Ne6 {[%clk 0:02:11.9]} 19. Nxe6 {[%clk 0:01:55.2]} 19... Bxe6
{[%clk 0:02:11.4]} 20. Be3 {[%clk 0:01:56.3]} 20... f6 {[%clk 0:01:28.5]} 21. f4
{[%clk 0:01:57.1]} 21... gxf4 {[%clk 0:01:28]} 22. Bxf4 {[%clk 0:01:56]} 22...
Qe7 {[%clk 0:01:20.9]} 23. Bxe5 {[%clk 0:01:55.6]} 23... fxe5 {[%clk 0:01:10.4]}
24. Rf2 {[%clk 0:01:33.5]} 24... Rf8 {[%clk 0:01:09.2]} 25. Rdf1 {[%clk
0:01:34.8]} 25... Kg7 {[%clk 0:00:58.6]} 26. Rf5 {[%clk 0:01:26]} 26... Bxf5
{[%clk 0:00:21]} 27. exf5 {[%clk 0:01:25.1]} 27... Nh8 {[%clk 0:00:18]} 28. g5
{[%clk 0:01:23]} 28... Kg8 {[%clk 0:00:15.8]} 29. Bxb7 {[%clk 0:01:21.2]} 29...
Rab8 {[%clk 0:00:12.9]} 30. Bd5+ {[%clk 0:01:21.9]} 30... Rf7 {[%clk 0:00:09.8]}
31. g6 {[%clk 0:01:21.8]} 31... Qf6 {[%clk 0:00:08.8]} 32. Qh6 {[%clk
0:01:15.2]} 32... c6 {[%clk 0:00:03]} 33. gxf7+ {[%clk 0:01:15.6]} 33... Nxf7
{[%clk 0:00:03.2]} 34. Qxf6 {[%clk 0:01:15.9]} 1-0

[Event "*** Titled Tuesday Blitz"]
[Site "Chess.com"]
[Date "2018.01.02"]
[Round "3"]
[White "Superfelix"]
[Black "Usurpov"]
[Result "1-0"]
[WhiteElo "2280"]
[BlackElo "2339"]
[TimeControl "180+2"]
[EndTime "13:37:13 PST"]
[Termination "Superfelix won by checkmate"]

1. e4 {[%clk 0:03:01.4]} 1... c5 {[%clk 0:02:59.8]} 2. Nf3 {[%clk 0:02:58.2]}
2... Nc6 {[%clk 0:02:59.5]} 3. d4 {[%clk 0:02:57.2]} 3... cxd4 {[%clk
0:03:01.4]} 4. Nxd4 {[%clk 0:02:58.4]} 4... Nf6 {[%clk 0:03:02.5]} 5. Nc3 {[%clk
0:02:56.7]} 5... e5 {[%clk 0:03:02.9]} 6. Ndb5 {[%clk 0:02:57.7]} 6... d6 {[%clk
0:03:02.6]} 7. Nd5 {[%clk 0:02:58.9]} 7... Nxd5 {[%clk 0:02:54.5]} 8. exd5
{[%clk 0:03:00.8]} 8... Nb8 {[%clk 0:02:53.3]} 9. c4 {[%clk 0:03:02.3]} 9... Be7
{[%clk 0:02:53.2]} 10. g3 {[%clk 0:02:55.4]} 10... O-O {[%clk 0:02:50.4]} 11.
Bg2 {[%clk 0:02:56.5]} 11... f5 {[%clk 0:02:47.3]} 12. O-O {[%clk 0:02:57.2]}
12... Nd7 {[%clk 0:02:38.2]} 13. b4 {[%clk 0:02:54.2]} 13... a6 {[%clk
0:02:28.6]} 14. Nc3 {[%clk 0:02:53.6]} 14... a5 {[%clk 0:02:29.2]} 15. Nb5
{[%clk 0:02:51.6]} 15... axb4 {[%clk 0:02:28.4]} 16. Bd2 {[%clk 0:02:51.7]}
16... Nf6 {[%clk 0:02:15.8]} 17. Bxb4 {[%clk 0:02:52.3]} 17... f4 {[%clk
0:02:10.7]} 18. a4 {[%clk 0:02:44.7]} 18... e4 {[%clk 0:02:05.6]} 19. f3 {[%clk
0:02:40.6]} 19... fxg3 {[%clk 0:01:58.1]} 20. fxe4 {[%clk 0:02:41.4]} 20...
gxh2+ {[%clk 0:01:55.8]} 21. Kh1 {[%clk 0:02:42.5]} 21... Ng4 {[%clk 0:01:52.6]}
22. Qd2 {[%clk 0:02:29.8]} 22... Ne5 {[%clk 0:01:29.3]} 23. Nd4 {[%clk
0:02:28.7]} 23... Nxc4 {[%clk 0:01:18.5]} 24. Qe2 {[%clk 0:02:29.5]} 24... Ne5
{[%clk 0:01:17.2]} 25. a5 {[%clk 0:02:25.8]} 25... Bg4 {[%clk 0:01:13.9]} 26.
Qe3 {[%clk 0:02:27]} 26... Rc8 {[%clk 0:01:08.7]} 27. Rxf8+ {[%clk 0:02:25.6]}
27... Bxf8 {[%clk 0:01:10.6]} 28. Rf1 {[%clk 0:02:26]} 28... Rc4 {[%clk
0:01:08.3]} 29. Bc3 {[%clk 0:02:19.6]} 29... Qc8 {[%clk 0:01:01.8]} 30. Ba1
{[%clk 0:02:15.7]} 30... h6 {[%clk 0:00:52.7]} 31. Nf5 {[%clk 0:02:14.4]} 31...
Bxf5 {[%clk 0:00:52.2]} 32. exf5 {[%clk 0:02:15.9]} 32... Be7 {[%clk 0:00:18.1]}
33. Bxe5 {[%clk 0:01:59]} 33... dxe5 {[%clk 0:00:20]} 34. d6 {[%clk 0:01:57.5]}
34... Bxd6 {[%clk 0:00:16.5]} 35. Bd5+ {[%clk 0:01:58.4]} 35... Kh8 {[%clk
0:00:17.2]} 36. f6 {[%clk 0:01:59.7]} 36... Rf4 {[%clk 0:00:15.3]} 37. fxg7+
{[%clk 0:01:59.6]} 37... Kxg7 {[%clk 0:00:17.2]} 38. Qg3+ {[%clk 0:01:59.9]}
38... Rg4 {[%clk 0:00:18.1]} 39. Qxh2 {[%clk 0:01:51]} 39... Qc5 {[%clk
0:00:14.7]} 40. Qd2 {[%clk 0:01:37.7]} 40... Rd4 {[%clk 0:00:13.3]} 41. Rf7+
{[%clk 0:01:36.9]} 41... Kg6 {[%clk 0:00:13.9]} 42. Qg2+ {[%clk 0:01:37.2]}
42... Kh5 {[%clk 0:00:15.2]} 43. Bf3+ {[%clk 0:01:35.7]} 43... Kh4 {[%clk
0:00:14.5]} 44. Qh2+ {[%clk 0:01:30.2]} 44... Kg5 {[%clk 0:00:14.3]} 45. Qh5#
{[%clk 0:01:30.3]} 1-0

[Event "*** Titled Tuesday Blitz"]
[Site "Chess.com"]
[Date "2018.01.02"]
[Round "3"]
[White "abruptum"]
[Black "Jbd735"]
[Result "1/2-1/2"]
[WhiteElo "2306"]
[BlackElo "2280"]
[TimeControl "180+2"]
[EndTime "13:37:15 PST"]
[Termination "Game drawn by repetition"]

1. d4 {[%clk 0:03:01.9]} 1... d5 {[%clk 0:03:00.6]} 2. c4 {[%clk 0:03:03]} 2...
c6 {[%clk 0:03:01.4]} 3. Nc3 {[%clk 0:03:04.2]} 3... Nf6 {[%clk 0:03:01.9]} 4.
e3 {[%clk 0:03:05.5]} 4... e6 {[%clk 0:03:00]} 5. Nf3 {[%clk 0:03:04]} 5... Nbd7
{[%clk 0:02:59.1]} 6. Bd3 {[%clk 0:03:03.1]} 6... dxc4 {[%clk 0:03:00.2]} 7.
Bxc4 {[%clk 0:03:04.4]} 7... b5 {[%clk 0:03:01.7]} 8. Bd3 {[%clk 0:03:05.5]}
8... a6 {[%clk 0:03:03.1]} 9. a4 {[%clk 0:02:58.5]} 9... b4 {[%clk 0:02:53.9]}
10. Ne4 {[%clk 0:02:57.5]} 10... c5 {[%clk 0:02:48.4]} 11. Nxf6+ {[%clk
0:02:54.2]} 11... Nxf6 {[%clk 0:02:42.3]} 12. dxc5 {[%clk 0:02:54.5]} 12... Bxc5
{[%clk 0:02:40.8]} 13. O-O {[%clk 0:02:55.4]} 13... Bb7 {[%clk 0:02:33.8]} 14.
Qe2 {[%clk 0:02:56.1]} 14... O-O {[%clk 0:02:32.2]} 15. e4 {[%clk 0:02:53.5]}
15... Nd7 {[%clk 0:02:00.3]} 16. Bg5 {[%clk 0:02:49.3]} 16... f6 {[%clk
0:01:47.1]} 17. Be3 {[%clk 0:02:46.8]} 17... Qe7 {[%clk 0:01:43.2]} 18. a5
{[%clk 0:02:45.5]} 18... Rfc8 {[%clk 0:01:33.9]} 19. Rfc1 {[%clk 0:02:44.7]}
19... Bxe3 {[%clk 0:01:23.7]} 20. Qxe3 {[%clk 0:02:45.1]} 20... Nc5 {[%clk
0:01:24.5]} 21. Nd2 {[%clk 0:02:30.3]} 21... Nxd3 {[%clk 0:01:02]} 22. Qxd3
{[%clk 0:02:30.9]} 22... Rd8 {[%clk 0:00:54.2]} 23. Qe3 {[%clk 0:02:30.9]} 23...
Rd7 {[%clk 0:00:54.5]} 24. Nb3 {[%clk 0:02:24.9]} 24... Rad8 {[%clk 0:00:49.1]}
25. Nc5 {[%clk 0:02:23.5]} 25... Rd2 {[%clk 0:00:48.6]} 26. Qb3 {[%clk
0:02:17.2]} 26... Bc8 {[%clk 0:00:42.3]} 27. Qxb4 {[%clk 0:02:15.7]} 27... Qd6
{[%clk 0:00:30.1]} 28. g3 {[%clk 0:02:13.7]} 28... h5 {[%clk 0:00:26.8]} 29. h4
{[%clk 0:02:10.4]} 29... f5 {[%clk 0:00:21.5]} 30. Qb3 {[%clk 0:01:59.4]} 30...
f4 {[%clk 0:00:20.2]} 31. Qf3 {[%clk 0:02:00]} 31... Rf8 {[%clk 0:00:18.6]} 32.
e5 {[%clk 0:01:55.4]} 32... Qxe5 {[%clk 0:00:17.7]} 33. Ne4 {[%clk 0:01:57]}
33... Rxb2 {[%clk 0:00:16.8]} 34. Ng5 {[%clk 0:01:43]} 34... fxg3 {[%clk
0:00:12.1]} 35. Qxg3 {[%clk 0:01:44.2]} 35... Qxg3+ {[%clk 0:00:12.4]} 36. fxg3
{[%clk 0:01:44.6]} 36... Bb7 {[%clk 0:00:14.3]} 37. Rab1 {[%clk 0:01:34.6]}
37... Rg2+ {[%clk 0:00:14]} 38. Kh1 {[%clk 0:01:36]} 38... Rb2+ {[%clk
0:00:15.3]} 39. Kg1 {[%clk 0:01:36.4]} 39... Rg2+ {[%clk 0:00:14.1]} 40. Kh1
{[%clk 0:01:37.4]} 40... Rc2+ {[%clk 0:00:12.9]} 41. Kg1 {[%clk 0:01:38.1]}
41... Rg2+ {[%clk 0:00:12]} 42. Kh1 {[%clk 0:01:39.4]} 42... Rb2+ {[%clk
0:00:11.3]} 43. Kg1 {[%clk 0:01:40.3]} 1/2-1/2